bitfinex/quotes_BTCUSD_20251208
["timestamp","ask_amount","ask_price","bid_price","bid_amount"]
[1765218698788,0.0176,90160.0,90157.0,0.01209176]
[1765218699071,0.02869139,90160.0,90157.0,0.23592604]
[1765218699369,0.01109077,90165.0,90159.0,0.02722151]
[1765218699528,0.22182112,90163.0,90160.0,0.23291752]
[1765218699868,0.0176,90164.0,90161.0,0.01109127]
[1765218700066,0.23941884,90164.0,90160.0,0.01109139]
[1765218700228,0.22182093,90163.0,90160.0,0.01109139]
[1765218700412,0.22182093,90163.0,90158.0,0.01109163]
[1765218700413,0.01109102,90163.0,90158.0,0.01109163]
[1765218700627,0.01109114,90162.0,90159.0,0.23292059]
[1765218700822,0.22182636,90161.0,90158.0,0.01109163]
[1765218701135,0.0176,90164.0,90161.0,0.01109127]
[1765218701336,0.0176,90164.0,90162.0,0.22182235]
[1765218701540,0.0176,90164.0,90163.0,0.22182048]
[1765218702549,0.0176,90164.0,90162.0,0.1456]
[1765218702763,0.01512,90163.0,90162.0,0.1456]
[1765218702961,0.23694048,90163.0,90162.0,0.1456]
[1765218703175,0.01512,90163.0,90162.0,0.1456]
[1765218703372,0.23694048,90163.0,90162.0,0.1456]
[1765218703852,0.01512,90163.0,90162.0,0.1456]
[1765218704053,0.0176,90164.0,90163.0,0.22182048]
[1765218705253,0.25453808,90164.0,90163.0,0.002]
[1765218705455,0.37160387,90164.0,90163.0,0.002]
[1765218706275,0.37160387,90164.0,90163.0,0.003]
[1765218706493,0.67240788,90164.0,90163.0,0.001]
[1765218706703,0.323,90163.0,90162.0,0.1456]
[1765218706898,0.36225287,90163.0,90162.0,0.1456]
[1765218707077,0.47073215,90163.0,90162.0,0.1456]
[1765218707745,0.49292814,90163.0,90162.0,0.1456]
[1765218707949,0.71474862,90163.0,90162.0,0.1456]
[1765218708302,0.22184334,90154.0,90151.0,0.23294238]
[1765218708518,0.01105,90152.0,90150.0,0.01109262]
[1765218708740,0.01105,90152.0,90150.0,0.23294477]
[1765218708904,0.01512,90151.0,90150.0,0.23294477]
[1765218709088,0.24398997,90152.0,90149.0,0.01109274]
[1765218709286,0.22643335,90163.0,90149.0,0.01109274]
[1765218709287,0.02214151,90159.0,90151.0,0.0267025]
[1765218709490,0.0176,90158.0,90152.0,0.01561]
[1765218709711,0.22183588,90157.0,90154.0,0.23293475]
[1765218709889,0.22183588,90157.0,90152.0,0.01561]
[1765218709890,0.22184072,90155.0,90152.0,0.22184732]
[1765218710233,0.22184417,90154.0,90151.0,0.23294242]
[1765218710409,0.02869163,90158.0,90154.0,0.22184182]
[1765218710623,0.02869163,90158.0,90155.0,0.2329312]
[1765218710832,0.02869163,90158.0,90155.0,0.011092]
[1765218710833,0.22183637,90157.0,90155.0,0.011092]
[1765218711025,0.25052506,90158.0,90155.0,0.23293024]
[1765218711226,0.2218357,90157.0,90155.0,0.011092]
[1765218711434,0.02869163,90158.0,90155.0,0.23293208]
[1765218712059,0.0176,90158.0,90157.0,0.22183524]
[1765218712216,0.0176,90158.0,90157.0,0.01561]
[1765218712591,0.0176,90158.0,90157.0,0.22183524]
[1765218713344,0.0176,90158.0,90157.0,0.002]
[1765218713345,0.2505246,90158.0,90157.0,0.002]
[1765218713584,0.31036059,90158.0,90157.0,0.002]
[1765218713821,0.31036059,90158.0,90157.0,0.003]
[1765218714126,0.2881646,90158.0,90157.0,0.003]
[1765218714531,0.2881646,90158.0,90157.0,0.001]
[1765218715156,0.22185492,90149.0,90148.0,0.1456]
[1765218716264,0.22185492,90149.0,90148.0,0.1466]
[1765218716461,0.22185492,90149.0,90148.0,0.1486]
[1765218719956,0.23697492,90149.0,90148.0,0.1486]
[1765218720192,0.23858779,90149.0,90148.0,0.1486]
[1765218720318,0.26110779,90149.0,90148.0,0.003]
[1765218721227,0.26110779,90149.0,90145.0,0.00023924]
[1765218721228,0.22186231,90146.0,90145.0,0.00023924]
[1765218721422,0.25454231,90146.0,90145.0,0.00023924]
[1765218721664,0.27706231,90146.0,90145.0,0.00023924]
[1765218722317,0.27867518,90146.0,90145.0,0.00023924]
[1765218722526,0.72051406,90146.0,90145.0,0.00023924]
[1765218722734,0.26653849,90146.0,90145.0,0.00123924]
[1765218722925,0.27867518,90146.0,90145.0,0.00123924]
[1765218723129,0.30087117,90146.0,90145.0,0.00123924]
[1765218723353,0.61205874,90146.0,90145.0,0.00123924]
[1765218723556,0.8678942,90146.0,90145.0,0.00123924]
[1765218724053,0.8678942,90146.0,90145.0,0.00023924]
[1765218724240,0.8688942,90146.0,90145.0,0.00023924]
[1765218724449,0.8698942,90146.0,90145.0,0.00023924]
[1765218724608,0.8688942,90146.0,90145.0,0.00023924]
[1765218724803,0.8748942,90146.0,90145.0,0.00023924]
[1765218725028,0.22196572,90104.0,90098.0,0.1456]
[1765218725227,0.22197558,90100.0,90099.0,0.15752]
[1765218725435,0.01756,90104.0,90103.0,0.23757819]
[1765218725632,0.01756,90104.0,90103.0,0.01561]
[1765218725828,0.01756,90104.0,90103.0,0.04057]
[1765218726032,0.23952572,90104.0,90103.0,0.04057]
[1765218726232,0.01756,90104.0,90103.0,0.04057]
[1765218726409,0.23952572,90104.0,90103.0,0.01561]
[1765218726615,0.23952572,90104.0,90099.0,0.00011662]
[1765218726616,0.22197558,90100.0,90099.0,0.00011662]
[1765218726815,0.23856558,90100.0,90099.0,0.00011662]
[1765218727038,0.26308558,90100.0,90099.0,0.00011662]
[1765218727238,0.22297558,90100.0,90099.0,0.00711662]
[1765218727639,0.22197558,90100.0,90099.0,0.00011662]
[1765218727848,0.23856558,90100.0,90099.0,0.00311662]
[1765218728855,0.23856558,90100.0,90099.0,0.00411662]
[1765218729232,0.26469845,90100.0,90099.0,0.00411662]
[1765218729945,0.26469845,90100.0,90099.0,0.00111662]
[1765218730166,0.26469845,90100.0,90099.0,0.00411662]
[1765218730488,0.26469845,90100.0,90099.0,0.00111662]
[1765218730655,0.24017845,90100.0,90099.0,0.00111662]
[1765218730861,0.233072,90102.0,90099.0,0.01996662]
[1765218731060,0.22197558,90100.0,90099.0,0.00449301]
[1765218731241,0.01756,90101.0,90099.0,0.00549301]
[1765218731443,0.01756,90100.0,90099.0,0.01521552]
[1765218731871,0.01756,90100.0,90099.0,0.01421552]
[1765218732081,0.01756,90100.0,90099.0,0.14971662]
[1765218732859,0.03345,90100.0,90099.0,0.14971662]
[1765218733056,0.03345,90100.0,90099.0,0.00411662]
[1765218733057,0.05839287,90100.0,90099.0,0.00411662]
[1765218733289,0.38139287,90100.0,90099.0,0.00311662]
[1765218733466,0.38139287,90100.0,90099.0,0.00011662]
[1765218733680,0.38139287,90100.0,90099.0,0.00111662]
[1765218733882,0.35806287,90100.0,90099.0,0.00511662]
[1765218734091,0.35806287,90100.0,90099.0,0.00011662]
[1765218734296,0.35806287,90100.0,90099.0,0.00311662]
[1765218734297,0.38139287,90100.0,90099.0,0.00311662]
[1765218735257,0.38139287,90100.0,90099.0,0.00411662]
[1765218735474,0.01917287,90100.0,90099.0,0.00411662]
[1765218735701,0.00161287,90100.0,90099.0,0.00411662]
[1765218735967,0.0176,90100.0,90099.0,0.00411662]
[1765218736423,0.03349,90100.0,90099.0,0.00311662]
[1765218736634,0.05843287,90100.0,90099.0,0.00311662]
[1765218736823,0.15611827,90100.0,90099.0,0.00311662]
[1765218737037,0.15611827,90100.0,90099.0,0.00449301]
[1765218737397,0.37809385,90100.0,90099.0,0.00449301]
[1765218737922,0.28040845,90100.0,90099.0,0.00449301]
[1765218738538,0.22358845,90100.0,90099.0,0.00449301]
[1765218738772,0.24118845,90100.0,90099.0,0.00449301]
[1765218738972,0.28040845,90100.0,90099.0,0.00449301]
[1765218739151,0.30260444,90100.0,90099.0,0.00449301]
[1765218739519,0.40500525,90100.0,90099.0,0.00449301]
[1765218739719,0.25707845,90100.0,90099.0,0.00449301]
[1765218740723,0.28040845,90100.0,90099.0,0.00449301]
[1765218743451,0.25707845,90100.0,90099.0,0.00449301]
[1765218744926,0.23953558,90100.0,90099.0,0.00449301]
[1765218745283,0.01756,90100.0,90099.0,0.01985301]
[1765218745465,0.01756,90100.0,90099.0,0.04276301]
[1765218745607,0.23953558,90100.0,90099.0,0.05486301]
[1765218745803,0.23953558,90100.0,90099.0,0.03195301]
[1765218746251,0.01756,90100.0,90099.0,0.03195301]
[1765218746449,0.27875558,90100.0,90099.0,0.00449301]
[1765218746625,0.30095157,90100.0,90099.0,0.00449301]
[1765218746823,0.35879355,90100.0,90099.0,0.00449301]
[1765218747098,0.30095157,90100.0,90099.0,0.00449301]
[1765218748289,0.60336845,90100.0,90099.0,0.00449301]
[1765218748488,0.62556444,90100.0,90099.0,0.00449301]
[1765218748987,0.63591682,90100.0,90099.0,0.00449301]
[1765218749186,0.7443961,90100.0,90099.0,0.00449301]
[1765218751247,0.63591682,90100.0,90099.0,0.00449301]
[1765218751447,0.69843981,90100.0,90099.0,0.00449301]
[1765218751644,0.72232223,90100.0,90099.0,0.00449301]
[1765218751850,0.2220224,90081.0,90080.0,0.0002]
[1765218752058,0.27778155,90081.0,90080.0,0.0002]
[1765218752267,0.60191556,90081.0,90080.0,0.0002]
[1765218752462,0.65839435,90081.0,90080.0,0.0002]
[1765218752668,0.56724304,90071.0,90070.0,0.0002]
[1765218752871,0.60448957,90071.0,90070.0,0.0002]
[1765218753068,0.73629885,90071.0,90070.0,0.0002]
[1765218753312,0.65172839,90071.0,90070.0,0.0002]
[1765218753745,0.70965539,90071.0,90070.0,0.0002]
[1765218753877,0.56726769,90061.0,90045.0,0.01110555]
[1765218754083,0.61686422,90061.0,90045.0,0.01110555]
[1765218754275,0.61686422,90061.0,90047.0,0.01110531]
[1765218754476,0.61686422,90061.0,90048.0,0.01110518]
[1765218754715,0.63446422,90061.0,90039.0,0.0121]
[1765218754917,0.80546649,90061.0,90031.0,0.01110728]
[1765218755281,0.80546649,90061.0,90034.0,0.01110691]
[1765218755776,0.80646649,90061.0,90060.0,0.0032]
[1765218756000,0.80646649,90061.0,90060.0,0.0002]
[1765218756404,0.80746649,90061.0,90060.0,0.0012]
[1765218756603,0.80846649,90061.0,90060.0,0.0012]
[1765218757594,0.65559342,90061.0,90060.0,0.0012]
[1765218757794,0.29337342,90061.0,90060.0,0.0012]
[1765218757932,0.28299689,90061.0,90060.0,0.0012]
[1765218758335,0.26539689,90061.0,90060.0,0.0012]
[1765218758706,0.26539689,90061.0,90060.0,0.01656]
[1765218758707,0.002,90061.0,90060.0,0.01656]
[1765218758908,0.0196,90061.0,90060.0,0.03947]
[1765218759062,0.0176,90061.0,90060.0,0.03847]
[1765218759264,0.0186,90061.0,90060.0,0.01756]
[1765218759473,0.0186,90061.0,90060.0,0.43459575]
[1765218759474,0.001,90061.0,90060.0,0.43459575]
[1765218759672,0.01110124,90080.0,90072.0,0.01110222]
[1765218759872,0.01098,90089.0,90060.0,0.03847]
[1765218759873,0.01098,90089.0,90080.0,0.02469]
[1765218760074,0.23311111,90086.0,90080.0,0.0476]
[1765218760270,0.01109976,90092.0,90080.0,0.0476]
[1765218760538,0.01110001,90090.0,90080.0,0.0476]
[1765218760708,0.23310034,90090.0,90080.0,0.0476]
[1765218760961,0.01110001,90090.0,90080.0,0.0476]
[1765218761124,0.00107316,90081.0,90080.0,0.0526]
[1765218762137,7.316e-05,90081.0,90080.0,0.07275593]
[1765218762305,7.316e-05,90081.0,90080.0,0.0506]
[1765218762506,0.00107316,90081.0,90080.0,0.0546]
[1765218762709,7.316e-05,90081.0,90080.0,0.0476]
[1765218762904,7.316e-05,90081.0,90080.0,0.0506]
[1765218763145,0.00107316,90081.0,90080.0,0.08075593]
[1765218764449,0.00107316,90081.0,90080.0,0.0586]
[1765218764737,0.00107316,90081.0,90080.0,0.63610925]
[1765218764940,0.03973574,90134.0,90080.0,0.63610925]
[1765218764941,0.03871232,90129.0,90126.0,0.01109557]
[1765218765122,0.01109471,90133.0,90129.0,0.0110952]
[1765218765123,0.02869471,90133.0,90129.0,0.0110952]
[1765218765275,0.01921287,90133.0,90127.0,0.01109545]
[1765218765473,0.01921287,90133.0,90132.0,0.01626]
[1765218765726,0.01109348,90143.0,90140.0,0.23297006]
[1765218765969,0.01109348,90143.0,90139.0,0.22187838]
[1765218766179,0.0176,90145.0,90141.0,0.23296735]
[1765218766358,0.0110941,90138.0,90134.0,0.01109459]
[1765218766535,0.01270635,90143.0,90139.0,0.22187781]
[1765218766536,0.00161287,90143.0,90139.0,0.22187781]
[1765218766746,0.00161287,90143.0,90141.0,0.22187232]
[1765218766947,0.00161287,90143.0,90140.0,0.23296839]
[1765218766948,0.01370635,90143.0,90140.0,0.003]
[1765218767158,0.00261287,90143.0,90140.0,0.01409385]
[1765218767415,0.00261287,90143.0,90132.0,0.24473029]
[1765218767416,0.23297339,90140.0,90132.0,0.24473029]
[1765218767591,0.01109373,90141.0,90138.0,0.0110941]
[1765218767991,0.01109385,90140.0,90137.0,0.01109422]
[1765218768175,0.23297181,90140.0,90137.0,0.01109422]
[1765218768374,0.01109446,90135.0,90132.0,0.002]
[1765218768571,0.01109446,90135.0,90084.0,0.08232388]
[1765218768572,0.01109533,90128.0,90125.0,0.0226557]
[1765218768916,0.01109533,90128.0,90124.0,0.01109582]
[1765218768917,0.233003,90128.0,90123.0,0.01109594]
[1765218769089,0.01109533,90128.0,90125.0,0.23300862]
[1765218769290,0.01109483,90132.0,90125.0,0.23300862]
[1765218769291,0.23299443,90131.0,90126.0,0.01109557]
[1765218769699,0.001,90128.0,90126.0,0.23300573]
[1765218769908,0.001,90128.0,90125.0,0.23300863]
[1765218770628,0.23300003,90129.0,90125.0,0.23400863]
[1765218771090,0.01109693,90115.0,90105.0,0.01156]
[1765218771298,0.01109742,90111.0,90103.0,0.0110984]
[1765218771490,0.0176,90114.0,90107.0,0.01109791]
[1765218771695,0.02869705,90114.0,90109.0,0.01109767]
[1765218771893,0.02214717,90113.0,90106.0,0.01109804]
[1765218772012,0.01109754,90110.0,90107.0,0.01109791]
[1765218772218,0.01109742,90111.0,90107.0,0.01109791]
[1765218772430,0.01109791,90107.0,90103.0,0.23306627]
[1765218772636,0.01109779,90108.0,90104.0,0.01109828]
[1765218772830,0.01109779,90108.0,90099.0,0.0110989]
[1765218772831,0.01109804,90106.0,90099.0,0.0110989]
[1765218773080,0.01109804,90106.0,90100.0,0.02283877]
[1765218773279,0.01109804,90106.0,90102.0,0.01109853]
[1765218773450,0.01109816,90105.0,90102.0,0.01109853]
[1765218774035,0.01109828,90104.0,90100.0,0.02283877]
[1765218774180,0.22197311,90101.0,90100.0,0.01174]
[1765218774362,0.22197311,90101.0,90087.0,0.23310657]
[1765218774363,0.01109902,90098.0,90093.0,0.01109964]
[1765218774768,0.01109877,90100.0,90097.0,0.01174]
[1765218774975,0.01109877,90100.0,90091.0,0.22223631]
[1765218774976,0.01109939,90095.0,90091.0,0.00023946]
[1765218775237,0.01109902,90098.0,90093.0,0.01109964]
[1765218775519,0.01109902,90098.0,90097.0,0.01174]
[1765218775664,0.23307777,90099.0,90097.0,0.01174]
[1765218776719,0.23307777,90099.0,90097.0,0.01374]
[1765218777032,0.23307777,90099.0,90097.0,0.01174]
[1765218777422,0.23307777,90099.0,90097.0,0.01374]
[1765218777628,0.22197804,90099.0,90097.0,0.01374]
[1765218777944,0.22197804,90099.0,90095.0,0.01109939]
[1765218777945,0.23308772,90095.0,90091.0,0.01133934]
[1765218778147,0.01109902,90098.0,90097.0,0.001]
[1765218778148,0.23308163,90098.0,90097.0,0.001]
[1765218778510,0.001,90099.0,90097.0,0.001]
[1765218778842,0.22197927,90099.0,90097.0,0.001]
[1765218779436,0.01109902,90098.0,90095.0,0.01109939]
[1765218779638,0.22297927,90099.0,90095.0,0.01109939]
[1765218779914,0.23407719,90099.0,90095.0,0.23308546]
[1765218780339,0.01109902,90098.0,90095.0,0.01109939]
[1765218780555,0.001,90099.0,90097.0,0.22298143]
[1765218780758,0.001,90099.0,90098.0,0.01549]
[1765218780932,0.001,90099.0,90098.0,0.05509686]
[1765218781271,0.0176,90103.0,90102.0,0.02215593]
[1765218781418,0.01109791,90107.0,90101.0,0.22197139]
[1765218781622,0.01109902,90098.0,90095.0,0.01209939]
[1765218781943,0.22197053,90103.0,90099.0,0.22197804]
[1765218782132,0.22197053,90103.0,90096.0,0.01109927]
[1765218782133,0.0176,90108.0,90106.0,0.01206]
[1765218782488,0.323,90124.0,90091.0,0.00023946]
[1765218782489,0.0110957,90125.0,90122.0,0.01109606]
[1765218782713,0.0176,90128.0,90126.0,0.221911]
[1765218782898,0.0176,90128.0,90125.0,0.0110957]
[1765218783073,0.0176,90128.0,90125.0,0.23300869]
[1765218783276,0.0176,90128.0,90126.0,0.22191078]
[1765218783476,0.23299332,90132.0,90125.0,0.23300869]
[1765218783477,0.22188742,90136.0,90131.0,0.01109496]
[1765218783683,0.22189964,90131.0,90128.0,0.23300195]
[1765218783888,0.01109471,90133.0,90130.0,0.01109508]
[1765218784085,0.01109471,90133.0,90131.0,0.01535]
[1765218784334,0.01109471,90133.0,90116.0,0.0110968]
[1765218784335,0.01109594,90123.0,90116.0,0.0110968]
[1765218784490,0.01109619,90121.0,90116.0,0.0110968]
[1765218784695,0.01270881,90123.0,90116.0,0.0110968]
[1765218784696,0.00161287,90123.0,90120.0,0.23302263]
[1765218784899,0.01109606,90122.0,90118.0,0.23302663]
[1765218785118,0.23313448,90122.0,90118.0,0.23302663]
[1765218785327,0.23313448,90122.0,90115.0,0.2219365]
[1765218785328,0.01109754,90110.0,90107.0,0.01432791]
[1765218785529,0.02689,90119.0,90107.0,0.01432791]
[1765218785530,0.23303339,90116.0,90112.0,0.23304286]
[1765218785745,0.23340124,90119.0,90107.0,0.00323]
[1765218785746,0.01109754,90110.0,90107.0,0.00323]
[1765218785938,0.01109742,90111.0,90107.0,0.01109791]
[1765218786109,0.23304628,90111.0,90107.0,0.01109791]
[1765218786363,0.23304628,90111.0,90108.0,0.01109779]
[1765218786962,0.22195146,90110.0,90108.0,0.01109779]
[1765218787169,0.01147,90131.0,90120.0,0.22192409]
[1765218787371,0.01764,90135.0,90121.0,0.03750593]
[1765218787590,0.01764,90135.0,90121.0,0.05285593]
[1765218787991,0.01764,90135.0,90121.0,0.0307]
[1765218788189,0.01764,90135.0,90121.0,0.05285593]
[1765218788399,0.03871232,90160.0,90121.0,0.05285593]
[1765218788400,0.01109176,90157.0,90121.0,2.07049593]
[1765218788654,0.01109225,90153.0,90121.0,2.43220825]
[1765218788798,0.01764,90155.0,90121.0,2.43220825]
[1765218788983,0.01764,90155.0,90121.0,2.49473124]
[1765218789238,0.01764,90155.0,90154.0,0.22184262]
[1765218789442,0.01775657,90155.0,90154.0,0.22184262]
[1765218790044,0.00011657,90155.0,90154.0,0.23719262]
[1765218790252,0.00011657,90155.0,90154.0,0.25254262]
[1765218790457,0.00011657,90155.0,90154.0,0.23719262]
[1765218790680,0.00011657,90155.0,90154.0,0.27669855]
[1765218791104,0.00011657,90155.0,90154.0,0.25454262]
[1765218791682,0.00011657,90155.0,90154.0,1.48740962]
[1765218791968,0.00011657,90155.0,90154.0,1.50956555]
[1765218792595,0.00011657,90155.0,90154.0,1.48540962]
[1765218792843,0.00011657,90155.0,90154.0,0.70133662]
[1765218793020,0.00111657,90155.0,90154.0,0.72649255]
[1765218793325,0.00111657,90155.0,90154.0,0.72349255]
[1765218793560,0.00111657,90155.0,90154.0,0.70585255]
[1765218793758,0.00111657,90155.0,90154.0,0.71185255]
[1765218793968,0.00111657,90155.0,90154.0,0.26534855]
[1765218794169,0.00111657,90155.0,90154.0,0.22784262]
[1765218794320,0.00011657,90155.0,90154.0,0.37344262]
[1765218794535,0.00011657,90155.0,90154.0,0.38044262]
[1765218794738,0.00011657,90155.0,90154.0,0.39579262]
[1765218794953,0.00011657,90155.0,90154.0,0.40494855]
[1765218795158,0.00011657,90155.0,90154.0,0.42329855]
[1765218795377,0.00711657,90155.0,90154.0,0.42329855]
[1765218795866,0.00711657,90155.0,90154.0,0.74118762]
[1765218796082,0.00011657,90155.0,90154.0,0.66470062]
[1765218796362,0.00011657,90155.0,90154.0,0.68685655]
[1765218796691,0.00011657,90155.0,90154.0,0.66270062]
[1765218797010,0.00011657,90155.0,90154.0,0.68885655]
[1765218797995,0.00311657,90155.0,90154.0,1.00785655]
[1765218798367,0.00011657,90155.0,90154.0,1.01085655]
[1765218798573,0.00011657,90155.0,90154.0,1.01185655]
[1765218798809,0.00011657,90155.0,90154.0,1.07037954]
[1765218799216,0.00011657,90155.0,90154.0,1.07637954]
[1765218799422,0.01108782,90189.0,90182.0,0.01108868]
[1765218799622,0.01108819,90186.0,90182.0,0.01108868]
[1765218799757,0.01108819,90186.0,90183.0,0.38602277]
[1765218799984,0.00038847,90189.0,90185.0,0.01108831]
[1765218800192,0.00038847,90189.0,90188.0,0.01535]
[1765218800742,0.00038847,90189.0,90188.0,0.05285593]
[1765218801559,0.00338847,90189.0,90188.0,0.03750593]
[1765218801767,0.00038847,90189.0,90188.0,0.03750593]
[1765218802117,0.00338847,90189.0,90188.0,0.03850593]
[1765218803438,0.24213787,90189.0,90188.0,0.001]
[1765218803639,0.00500134,90189.0,90188.0,0.001]
[1765218803808,0.22675787,90189.0,90188.0,0.001]
[1765218804211,0.26579787,90189.0,90188.0,0.001]
[1765218804456,0.22675787,90189.0,90188.0,0.001]
[1765218805379,0.24213787,90189.0,90188.0,0.001]
[1765218805582,0.26579787,90189.0,90188.0,0.001]
[1765218806357,0.24213787,90189.0,90188.0,0.001]
[1765218806554,0.26579787,90189.0,90188.0,0.001]
[1765218806753,0.24213787,90189.0,90188.0,0.001]
[1765218806955,0.00500134,90189.0,90188.0,0.001]
[1765218807209,0.00500134,90189.0,90188.0,0.22275899]
[1765218807401,0.00500134,90189.0,90188.0,0.23810899]
[1765218807639,0.00338847,90189.0,90188.0,0.01635]
[1765218807855,0.00338847,90189.0,90188.0,0.22275899]
[1765218808896,0.00338847,90189.0,90188.0,0.23810899]
[1765218809477,0.00338847,90189.0,90188.0,0.27561492]
[1765218813105,0.00338847,90189.0,90188.0,0.26026492]
[1765218813305,0.00338847,90189.0,90188.0,0.23810899]
[1765218813509,0.00338847,90189.0,90188.0,0.22275899]
[1765218813959,0.00338847,90189.0,90188.0,0.27561492]
[1765218814163,0.00338847,90189.0,90188.0,0.25345899]
[1765218814332,0.00338847,90189.0,90188.0,0.23810899]
[1765218814839,0.00338847,90189.0,90188.0,0.26026492]
[1765218815044,0.00338847,90189.0,90188.0,0.40574835]
[1765218815265,0.00338847,90189.0,90188.0,0.42109835]
[1765218816517,0.00338847,90189.0,90188.0,0.36824242]
[1765218816926,0.00338847,90189.0,90188.0,0.38359242]
[1765218817272,0.00338847,90189.0,90188.0,0.40574835]
[1765218817470,0.00338847,90189.0,90188.0,0.42109835]
[1765218819129,0.00338847,90189.0,90188.0,1.01042134]
[1765218819312,0.00333616,90195.0,90194.0,1.94983217]
[1765218819517,0.00345265,90195.0,90194.0,1.62755717]
[1765218819752,0.00345265,90195.0,90194.0,1.64290717]
[1765218819928,0.00345265,90195.0,90194.0,1.70543016]
[1765218820334,0.00345265,90195.0,90194.0,1.85091359]
[1765218821116,0.00345265,90195.0,90194.0,1.64425766]
[1765218821374,0.00445265,90195.0,90194.0,1.66641359]
[1765218821720,0.00445265,90195.0,90194.0,1.66441359]
[1765218821923,0.00445265,90195.0,90194.0,1.67041359]
[1765218822120,0.00445265,90195.0,90194.0,1.65281359]
[1765218822350,0.00445265,90195.0,90194.0,1.67041359]
[1765218822565,0.00345265,90195.0,90194.0,1.67041359]
[1765218822761,0.00345265,90195.0,90194.0,1.67641359]
[1765218823124,0.00345265,90195.0,90194.0,1.66441359]
[1765218823322,0.00345265,90195.0,90194.0,1.66641359]
[1765218823522,0.00345265,90195.0,90194.0,1.67041359]
[1765218823834,0.00345265,90195.0,90194.0,1.1162606]
[1765218824070,0.00345265,90195.0,90194.0,0.89664817]
[1765218824270,0.00345265,90195.0,90194.0,0.88754817]
[1765218824871,0.00345265,90195.0,90194.0,0.88354817]
[1765218825222,0.00345265,90195.0,90194.0,0.88654817]
[1765218825578,0.00345265,90195.0,90194.0,0.88454817]
[1765218826382,0.00345265,90195.0,90194.0,0.88154817]
[1765218826768,0.00345265,90195.0,90194.0,0.88354817]
[1765218828447,0.00345265,90195.0,90194.0,0.86594817]
[1765218828726,0.00345265,90195.0,90194.0,0.88354817]
[1765218829079,0.00345265,90195.0,90194.0,0.86139224]
[1765218829282,0.00345265,90195.0,90194.0,0.88354817]
[1765218829923,0.23316442,90220.0,90217.0,0.01108438]
[1765218830577,0.0004,90220.0,90218.0,0.22168525]
[1765218830762,0.0004,90220.0,90219.0,0.14203078]
[1765218830930,0.0004,90220.0,90219.0,0.36371357]
[1765218831130,0.0004,90220.0,90219.0,0.14203078]
[1765218831336,0.0014,90220.0,90219.0,0.14203078]
[1765218831554,0.0014,90220.0,90219.0,0.36371357]
[1765218832124,0.22208033,90220.0,90219.0,0.14203078]
[1765218832329,0.2636832,90220.0,90219.0,0.14203078]
[1765218833345,0.2646832,90220.0,90219.0,0.14203078]
[1765218833933,0.28687919,90220.0,90219.0,0.14203078]
[1765218834345,0.2646832,90220.0,90219.0,0.14203078]
[1765218834764,0.275033,90220.0,90219.0,0.14203078]
[1765218834968,0.01108622,90202.0,90198.0,0.22173261]
[1765218835167,0.01108622,90202.0,90199.0,0.14203078]
[1765218835500,0.22172949,90200.0,90199.0,0.14203078]
[1765218835702,0.23877236,90200.0,90199.0,0.14203078]
[1765218835834,0.26333236,90200.0,90199.0,0.14203078]
[1765218836034,0.04160287,90200.0,90199.0,0.14203078]
[1765218836240,0.22173686,90197.0,90196.0,0.14203078]
[1765218836469,0.22173686,90197.0,90194.0,0.00015102]
[1765218836470,0.22174178,90195.0,90194.0,0.00015102]
[1765218836686,0.23717178,90195.0,90194.0,0.00015102]
[1765218836881,0.26173178,90195.0,90194.0,0.00015102]
[1765218838395,0.26273178,90195.0,90194.0,0.00015102]
[1765218838789,0.04099,90195.0,90194.0,0.00015102]
[1765218839203,0.26273178,90195.0,90194.0,0.00015102]
[1765218839397,0.008,90195.0,90194.0,0.22189526]
[1765218840406,0.007,90195.0,90194.0,0.25242526]
[1765218841136,0.00023901,90203.0,90202.0,0.22172457]
[1765218841526,0.00023901,90203.0,90202.0,0.23690457]
[1765218841726,0.00023901,90203.0,90200.0,0.01108647]
[1765218841906,0.00023901,90203.0,90202.0,0.22172457]
[1765218842108,0.00023901,90203.0,90200.0,0.01108647]
[1765218842316,0.01108672,90198.0,90195.0,0.01876708]
[1765218842546,0.23282342,90198.0,90195.0,0.2405084]
[1765218842779,0.23281907,90199.0,90196.0,0.23282385]
[1765218843161,0.23281305,90202.0,90199.0,0.01108659]
[1765218843377,0.22173932,90196.0,90195.0,0.00768]
[1765218843701,0.25453932,90196.0,90195.0,0.001]
[1765218843904,0.25453932,90196.0,90183.0,0.01108856]
[1765218843905,0.22174178,90195.0,90183.0,0.01108856]
[1765218844057,0.22174178,90195.0,90182.0,0.14203078]
[1765218844058,0.0152,90195.0,90190.0,0.0110877]
[1765218844247,0.0176,90196.0,90195.0,0.22174178]
[1765218844447,0.0176,90196.0,90195.0,0.22942178]
[1765218844771,0.0246,90196.0,90195.0,0.22942178]
[1765218844946,0.007,90196.0,90195.0,0.24460178]
[1765218845150,0.01108733,90193.0,90187.0,0.01108807]
[1765218845531,0.22176559,90186.0,90181.0,0.01108881]
[1765218845731,0.01108782,90189.0,90181.0,0.00011649]
[1765218845732,0.01108794,90188.0,90181.0,0.00011649]
[1765218845939,0.01108844,90184.0,90181.0,0.00011649]
[1765218846107,0.23285963,90184.0,90181.0,0.22189263]
[1765218846317,0.23697374,90182.0,90181.0,0.00011649]
[1765218846566,0.23697374,90182.0,90181.0,0.14214727]
[1765218846761,0.2344725,90184.0,90181.0,0.14214727]
[1765218846762,0.00161287,90184.0,90183.0,0.22177128]
[1765218846970,0.24428369,90201.0,90194.0,0.22174424]
[1765218847175,0.01147,90201.0,90194.0,0.22174424]
[1765218847413,0.22172976,90200.0,90194.0,0.22174424]
[1765218847619,0.01108598,90204.0,90194.0,0.23692424]
[1765218847823,0.01132511,90203.0,90194.0,0.23692424]
[1765218848006,0.00023901,90203.0,90194.0,0.23692424]
[1765218848156,0.01108622,90202.0,90194.0,0.23692424]
[1765218848392,0.00023901,90203.0,90194.0,0.23692424]
[1765218848752,0.0226,90195.0,90194.0,0.23692424]
[1765218848926,0.0176,90195.0,90194.0,0.23692424]
[1765218849142,0.0196,90195.0,90194.0,0.23692424]
[1765218850064,0.002,90195.0,90194.0,0.23792424]
[1765218850265,0.002,90195.0,90194.0,0.22274424]
[1765218850884,0.002,90195.0,90194.0,0.39530502]
[1765218851170,0.002,90195.0,90194.0,0.37995502]
[1765218852156,0.002,90195.0,90194.0,0.14303078]
[1765218852319,0.002,90195.0,90194.0,0.36477502]
[1765218852527,0.22374178,90195.0,90194.0,0.14303078]
[1765218852729,0.002,90195.0,90194.0,0.14303078]
[1765218852974,0.22374178,90195.0,90194.0,0.14303078]
[1765218853169,0.26455465,90195.0,90194.0,0.14303078]
[1765218853370,0.24096465,90195.0,90194.0,0.14303078]
[1765218854443,0.26455465,90195.0,90194.0,0.14303078]
[1765218855495,0.26455465,90195.0,90194.0,0.14203078]